bitfinex/quotes_SOLUSD_20230402
["timestamp","ask_amount","ask_price","bid_price","bid_amount"]
[1680420506437,10.0,21.3,21.286,30.0]
[1680420506635,10.0,21.298,21.286,30.0]
[1680420507131,10.0,21.298,21.283,119.5381]
[1680420507330,10.0,21.296,21.285,10.0]
[1680420507524,20.0,21.295,21.284,30.0]
[1680420508938,10.0,21.296,21.284,30.0]
[1680420509141,20.0,21.295,21.285,108.5055]
[1680420510533,10.0,21.296,21.285,108.5055]
[1680420510733,20.0,21.295,21.285,108.5055]
[1680420512029,10.0,21.296,21.285,108.5055]
[1680420512243,20.0,21.295,21.285,108.5055]
[1680420513444,10.0,21.296,21.285,108.5055]
[1680420513638,20.0,21.295,21.285,108.5055]
[1680420513944,20.0,21.297,21.285,108.5055]
[1680420514934,10.0,21.295,21.285,108.5055]
[1680420515335,10.0,21.293,21.276,10.0]
[1680420515749,10.0,21.291,21.276,10.0]
[1680420516046,17.0,21.29,21.276,10.0]
[1680420516346,17.0,21.29,21.274,231.3301]
[1680420516347,10.0,21.289,21.278,30.0]
[1680420516544,10.0,21.287,21.278,30.0]
[1680420516752,10.0,21.289,21.278,30.0]
[1680420516940,17.0,21.286,21.278,30.0]
[1680420517444,10.0,21.287,21.278,30.0]
[1680420517747,17.0,21.286,21.278,30.0]
[1680420517934,10.0,21.289,21.278,30.0]
[1680420518142,55.829,21.29,21.278,30.0]
[1680420518344,10.0,21.288,21.278,30.0]
[1680420518547,10.0,21.286,21.274,221.3301]
[1680420518739,10.0,21.288,21.275,40.0]
[1680420518931,17.0,21.285,21.275,40.0]
[1680420519334,17.0,21.287,21.275,40.0]
[1680420519949,10.0,21.287,21.275,40.0]
[1680420520135,17.0,21.286,21.275,40.0]
[1680420520634,17.0,21.288,21.275,40.0]
[1680420521944,128.2902,21.296,21.275,40.0]
[1680420522144,10.0,21.293,21.275,40.0]
[1680420523738,10.0,21.291,21.275,40.0]
[1680420523937,17.0,21.292,21.275,40.0]
[1680420524453,10.0,21.289,21.275,30.0]
[1680420524839,10.0,21.287,21.275,30.0]
[1680420525040,37.0,21.286,21.275,30.0]
[1680420525239,10.0,21.285,21.266,10.0]
[1680420525439,10.0,21.283,21.269,10.0]
[1680420525847,17.0,21.282,21.269,10.0]
[1680420526053,10.0,21.279,21.268,30.0]
[1680420526252,17.0,21.278,21.268,30.0]
[1680420527154,17.0,21.278,21.265,110.1572]
[1680420527742,10.0,21.278,21.265,110.1572]
[1680420527937,17.0,21.277,21.265,110.1572]
[1680420528151,17.0,21.277,21.254,62.94011201]
[1680420528356,30.0,21.276,21.257,110.0267]
[1680420528653,17.0,21.275,21.258,10.0]
[1680420528844,10.0,21.273,21.258,10.0]
[1680420529044,17.0,21.275,21.258,10.0]
[1680420529045,17.0,21.272,21.261,10.0]
[1680420529247,17.0,21.275,21.261,10.0]
[1680420529446,10.0,21.273,21.261,10.0]
[1680420529647,17.0,21.272,21.26,30.0]
[1680420532253,10.0,21.272,21.26,30.0]
[1680420533359,10.0,21.27,21.26,30.0]
[1680420534160,10.0,21.272,21.26,30.0]
[1680420534351,10.0,21.27,21.26,30.0]
[1680420535257,17.0,21.271,21.26,30.0]
[1680420537456,10.0,21.269,21.26,30.0]
[1680420537653,10.0,21.269,21.258,30.0]
[1680420537654,10.0,21.267,21.258,30.0]
[1680420537854,17.0,21.266,21.258,30.0]
[1680420538256,10.0,21.267,21.258,30.0]
[1680420538456,10.0,21.269,21.257,110.0267]
[1680420538664,10.0,21.267,21.257,110.0267]
[1680420539057,17.0,21.268,21.257,110.0267]
[1680420539854,17.0,21.268,21.248,395.3]
[1680420540059,10.0,21.267,21.254,10.0]
[1680420540263,17.0,21.266,21.254,10.0]
[1680420540560,17.0,21.266,21.253,40.0]
[1680420540774,17.0,21.266,21.253,30.0]
[1680420543065,10.0,21.267,21.253,30.0]
[1680420543265,10.0,21.265,21.253,30.0]
[1680420543670,17.0,21.266,21.253,30.0]
[1680420544371,10.0,21.267,21.253,30.0]
[1680420544573,10.0,21.269,21.254,10.0]
[1680420545460,17.11155295,21.269,21.253,30.0]
[1680420545880,10.0,21.267,21.253,30.0]
[1680420546080,10.0,21.265,21.253,30.0]
[1680420546461,10.0,21.263,21.249,115.414]
[1680420546665,10.0,21.261,21.249,115.414]
[1680420546879,17.0,21.26,21.249,115.414]
[1680420547082,56.39,21.26,21.249,115.414]
[1680420548987,10.0,21.259,21.244,15.51741294]
[1680420549283,10.0,21.257,21.245,30.0]
[1680420549484,10.0,21.257,21.244,15.51741294]
[1680420549485,16.467,21.254,21.244,15.51741294]
[1680420549690,10.0,21.252,21.244,15.51741294]
[1680420549987,17.0,21.251,21.244,15.51741294]
[1680420550376,17.0,21.252,21.244,15.51741294]
[1680420551267,10.0,21.251,21.244,15.51741294]
[1680420551472,17.0,21.25,21.244,15.51741294]
[1680420552280,10.0,21.251,21.244,15.51741294]
[1680420552586,17.0,21.25,21.244,15.51741294]
[1680420553588,10.0,21.253,21.244,15.51741294]
[1680420553589,10.0,21.251,21.244,15.51741294]
[1680420553787,17.0,21.25,21.244,15.51741294]
[1680420553987,17.0,21.25,21.237,10.0]
[1680420554169,10.0,21.253,21.237,10.0]
[1680420554370,10.0,21.251,21.237,10.0]
[1680420555374,10.0,21.251,21.236,119.0913]
[1680420555590,10.0,21.253,21.236,119.0913]
[1680420555895,10.0,21.251,21.237,10.0]
[1680420556098,10.0,21.249,21.237,10.0]
[1680420556291,17.0,21.248,21.237,10.0]
[1680420556485,17.0,21.248,21.236,119.0913]
[1680420556989,17.0,21.25,21.237,10.0]
[1680420558178,10.0,21.251,21.237,10.0]
[1680420558488,10.0,21.249,21.237,10.0]
[1680420558690,17.0,21.248,21.237,10.0]
[1680420559084,10.0,21.249,21.237,10.0]
[1680420559284,17.0,21.248,21.236,119.0913]
[1680420559876,10.0,21.249,21.236,119.0913]
[1680420560076,17.0,21.248,21.236,119.0913]
[1680420560785,17.0,21.25,21.236,119.0913]
[1680420560983,10.0,21.249,21.236,119.0913]
[1680420561187,17.0,21.248,21.236,119.0913]
[1680420561386,17.0,21.25,21.237,10.0]
[1680420561800,10.0,21.251,21.237,10.0]
[1680420562094,18.836271,21.255,21.239,10.0]
[1680420562491,10.0,21.253,21.239,10.0]
[1680420563197,20.0,21.254,21.239,10.0]
[1680420564084,18.836271,21.255,21.239,10.0]
[1680420564085,18.836271,21.255,21.24,26.24]
[1680420564286,18.836271,21.255,21.241,27.0]
[1680420564485,18.836271,21.255,21.243,10.0]
[1680420564699,10.0,21.262,21.245,10.0]
[1680420564879,10.0,21.262,21.246,17.0]
[1680420565083,10.0,21.262,21.247,10.0]
[1680420565883,10.0,21.26,21.247,10.0]
[1680420566082,10.0,21.26,21.245,10.0]
[1680420567193,17.0,21.261,21.245,10.0]
[1680420569098,17.0,21.261,21.243,10.0]
[1680420572002,17.0,21.261,21.242,20.0]
[1680420572202,17.0,21.261,21.244,10.0]
[1680420575505,10.0,21.261,21.244,10.0]
[1680420575685,10.0,21.259,21.244,10.0]
[1680420575890,17.0,21.258,21.244,10.0]
[1680420576703,17.0,21.258,21.243,27.0]
[1680420577000,10.0,21.259,21.243,27.0]
[1680420577201,10.0,21.257,21.243,27.0]
[1680420577391,10.0,21.259,21.245,10.0]
[1680420577591,17.0,21.258,21.245,10.0]
[1680420578191,10.0,21.259,21.245,10.0]
[1680420578392,17.0,21.258,21.245,10.0]
[1680420578793,10.0,21.259,21.245,10.0]
[1680420579008,17.0,21.258,21.245,10.0]
[1680420580010,10.0,21.259,21.244,112.3955]
[1680420580205,17.0,21.258,21.244,112.3955]
[1680420582092,48.54840113,21.266,21.26,992.491063]
[1680420582509,20.0,21.263,21.26,992.491063]
[1680420582897,27.11155295,21.263,21.26,992.491063]
[1680420584411,17.0,21.262,21.26,992.491063]
[1680420594927,24.11155295,21.262,21.26,992.491063]
[1680420598816,7.11155295,21.262,21.26,992.491063]
[1680420599019,20.0,21.263,21.26,992.491063]
[1680420599623,27.11155295,21.263,21.26,992.491063]
[1680420600425,17.0,21.262,21.26,992.491063]
[1680420600617,27.11155295,21.263,21.26,992.491063]
[1680420601226,20.0,21.263,21.26,992.491063]
[1680420601915,18.829046,21.264,21.261,10.0]
[1680420602111,10.0,21.279,21.261,10.0]
[1680420602815,52.46,21.28,21.261,10.0]
[1680420602816,52.46,21.28,21.261,118.4911]
[1680420603012,10.0,21.278,21.261,118.4911]
[1680420603416,7.11155295,21.278,21.261,118.4911]
[1680420604116,10.0,21.276,21.261,118.4911]
[1680420604320,20.0,21.275,21.261,118.4911]
[1680420604522,27.11155295,21.275,21.261,118.4911]
[1680420605713,17.0,21.274,21.261,118.4911]
[1680420605913,20.0,21.273,21.261,118.4911]
[1680420606615,20.0,21.274,21.261,118.4911]
[1680420606815,17.11155295,21.278,21.261,118.4911]
[1680420606816,10.0,21.276,21.261,118.4911]
[1680420607016,20.0,21.275,21.261,118.4911]
[1680420607511,20.0,21.277,21.261,118.4911]
[1680420607818,17.0,21.276,21.261,118.4911]
[1680420608029,20.0,21.275,21.261,118.4911]
[1680420609034,20.0,21.275,21.263,10.0]
[1680420609213,10.0,21.276,21.263,10.0]
[1680420609414,37.0,21.275,21.263,123.3565]
[1680420609817,20.0,21.275,21.263,123.3565]
[1680420610029,20.0,21.277,21.263,123.3565]
[1680420610229,17.0,21.276,21.263,123.3565]
[1680420610421,20.0,21.275,21.263,123.3565]
[1680420610823,17.0,21.274,21.263,123.3565]
[1680420611030,20.0,21.273,21.263,123.3565]
[1680420611733,20.0,21.277,21.263,123.3565]
[1680420611935,20.0,21.278,21.263,123.3565]
[1680420612134,17.0,21.277,21.263,123.3565]
[1680420612318,20.0,21.276,21.263,123.3565]
[1680420612925,54.084138,21.279,21.263,123.3565]
[1680420613126,37.636138,21.279,21.265,10.0]
[1680420613322,37.636138,21.279,21.267,10.0]
[1680420615133,37.636138,21.279,21.271,10.0]
[1680420615134,17.0,21.278,21.271,10.0]
[1680420615529,17.0,21.278,21.27,992.491063]
[1680420616032,17.0,21.278,21.271,10.0]
[1680420616639,17.0,21.278,21.27,992.491063]
[1680420617330,37.636138,21.279,21.27,992.491063]
[1680420617731,26.38,21.28,21.27,992.491063]
[1680420617924,16.444,21.284,21.27,992.491063]
[1680420618126,37.0,21.283,21.272,10.0]
[1680420618533,37.0,21.283,21.271,109.8704]
[1680420619144,20.0,21.283,21.271,109.8704]
[1680420619339,20.0,21.283,21.272,10.0]
[1680420619640,10.0,21.285,21.272,10.0]
[1680420619835,20.0,21.284,21.272,10.0]
[1680420620943,10.0,21.285,21.272,10.0]
[1680420621142,10.0,21.283,21.272,10.0]
[1680420621348,10.0,21.285,21.272,10.0]
[1680420621538,20.0,21.284,21.272,10.0]
[1680420621939,17.0,21.283,21.271,109.8704]
[1680420623028,20.0,21.284,21.272,10.0]
[1680420623232,20.0,21.286,21.272,10.0]
[1680420623434,10.0,21.284,21.272,10.0]
[1680420623735,20.0,21.283,21.272,10.0]
[1680420624135,20.0,21.283,21.271,109.8704]
[1680420624353,20.0,21.284,21.272,10.0]
[1680420626831,20.0,21.285,21.272,10.0]
[1680420629646,37.6244,21.286,21.274,10.0]
[1680420631041,37.6244,21.286,21.272,10.0]
[1680420631247,17.0,21.285,21.272,10.0]
[1680420631655,37.6244,21.286,21.272,10.0]
[1680420632041,20.0,21.285,21.272,10.0]
[1680420633853,10.0,21.287,21.272,10.0]
[1680420634150,37.0,21.286,21.272,10.0]
[1680420635460,37.0,21.286,21.271,109.8704]
[1680420636747,37.0,21.286,21.28,992.491063]
[1680420637565,53.442,21.286,21.28,992.491063]
[1680420639963,10.0,21.285,21.28,992.491063]
[1680420640162,37.0,21.284,21.28,992.491063]
[1680420640357,10.0,21.283,21.28,992.491063]
[1680420640562,10.0,21.281,21.28,992.491063]
[1680420640868,27.0,21.281,21.28,992.491063]
[1680420641056,47.0,21.281,21.28,978.578663]
[1680420641669,47.0,21.281,21.28,853.578663]
[1680420643454,37.0,21.281,21.28,853.578663]
[1680420644458,20.0,21.281,21.28,853.578663]
[1680420646471,10.0,21.287,21.28,853.578663]
[1680420646472,16.442,21.287,21.28,853.578663]
[1680420647754,20.0,21.286,21.28,853.578663]
[1680420648969,17.0,21.285,21.28,853.578663]
[1680420651662,20.0,21.286,21.28,853.578663]
[1680420654673,20.0,21.29,21.281,10.0]
[1680420659381,26.29,21.3,21.291,10.0]
[1680420659566,20.0,21.299,21.29,257.249532]
[1680420663263,10.0,21.296,21.29,257.249532]
[1680420663464,10.0,21.294,21.29,257.249532]
[1680420663674,16.437,21.293,21.29,257.249532]
[1680420665984,20.0,21.299,21.29,257.249532]
[1680420674471,36.433,21.299,21.29,257.249532]
[1680420675278,17.0,21.298,21.29,257.249532]
[1680420675481,20.0,21.297,21.29,257.249532]
[1680420675875,16.435,21.295,21.29,257.249532]
[1680420676480,20.0,21.297,21.291,10.0]
[1680420676982,20.0,21.299,21.29,257.249532]
[1680420677490,36.433,21.299,21.29,257.249532]
[1680420677882,17.0,21.298,21.29,257.249532]
[1680420678089,20.0,21.297,21.29,257.249532]
[1680420678288,16.435,21.295,21.29,257.249532]
[1680420679394,20.0,21.297,21.291,10.0]
[1680420679890,20.0,21.299,21.291,10.0]
[1680420680184,10.0,21.298,21.29,257.249532]
[1680420680390,20.0,21.297,21.29,257.249532]
[1680420680573,16.435,21.295,21.29,257.249532]
[1680420682210,17.0,21.294,21.29,257.249532]
[1680420682611,16.435,21.295,21.29,257.249532]
[1680420684912,17.0,21.294,21.29,257.249532]
[1680420685814,16.435,21.295,21.29,257.249532]
[1680420686611,0.0001,21.295,21.291,10.0]
[1680420687201,0.0001,21.295,21.29,257.249532]
[1680420687715,17.11165295,21.295,21.29,257.249532]
[1680420688013,10.0,21.293,21.29,257.249532]
[1680420688207,10.0,21.291,21.29,257.249532]
[1680420688401,47.0,21.291,21.29,257.249532]
[1680420688605,54.11155295,21.291,21.29,257.249532]
[1680420688999,44.11155295,21.291,21.29,257.249532]
[1680420689603,37.0,21.291,21.29,257.249532]
[1680420690115,44.11155295,21.291,21.29,257.249532]
[1680420693507,27.11155295,21.291,21.29,257.249532]
[1680420694819,44.11155295,21.291,21.29,211.118232]
[1680420702624,44.11155295,21.291,21.29,200.118232]
[1680420702832,152.27856459,21.291,21.29,200.118232]
[1680420704522,142.27856459,21.291,21.29,200.118232]
[1680420707521,135.16701164,21.291,21.29,200.118232]
[1680420707922,142.27856459,21.291,21.29,200.118232]
[1680420710835,105.27856459,21.291,21.29,200.118232]
[1680420711135,0.0001,21.295,21.291,10.0]
[1680420717230,16.4351,21.295,21.29,200.118232]
[1680420717428,17.0,21.294,21.29,200.118232]
[1680420718033,16.4351,21.295,21.29,200.118232]
[1680420718346,0.0001,21.295,21.291,10.0]
[1680420732451,0.0001,21.295,21.29,200.118232]
[1680420735641,0.0001,21.295,21.291,10.0]
[1680420751267,0.0001,21.295,21.29,200.118232]
[1680420753554,0.0001,21.295,21.291,10.0]
[1680420754664,20.0,21.296,21.291,10.0]
[1680420754665,0.0001,21.296,21.291,10.0]
[1680420754867,26.17,21.3,21.291,10.0]
[1680420756764,20.0,21.299,21.29,200.118232]
[1680420758576,26.17,21.3,21.29,200.118232]
[1680420760078,26.17,21.3,21.291,10.0]
[1680420763261,26.425,21.308,21.291,10.0]
[1680420763977,10.0,21.306,21.291,10.0]
[1680420764276,20.0,21.305,21.291,10.0]
[1680420764460,57.59167,21.305,21.291,10.0]
[1680420766861,10.0,21.303,21.291,10.0]
[1680420767676,10.0,21.304,21.291,10.0]
[1680420768265,26.38,21.3,21.291,10.0]
[1680420773775,26.38,21.3,21.29,200.118232]
[1680420776889,26.38,21.3,21.29,199.9445671]
[1680420780683,16.428,21.304,21.29,199.9445671]
[1680420780889,16.428,21.304,21.291,10.0]
[1680420781183,10.0,21.302,21.291,10.0]
[1680420781385,7.11155295,21.303,21.291,10.0]
[1680420784686,16.428,21.304,21.291,10.0]
[1680420794789,23.53955295,21.304,21.29,199.9445671]
[1680420794989,10.0,21.302,21.29,199.9445671]
[1680420795180,27.0,21.303,21.29,199.9445671]
[1680420795379,17.0,21.303,21.29,199.9445671]
[1680420797005,26.38,21.3,21.29,199.9445671]
[1680420802590,33.433,21.299,21.29,199.9445671]
[1680420805486,33.49155295,21.3,21.29,199.9445671]
[1680420805699,26.38,21.3,21.29,199.9445671]
[1680420805898,16.429,21.304,21.291,10.0]
[1680420805899,7.11155295,21.304,21.291,10.0]
[1680420806099,20.0,21.305,21.291,10.0]
[1680420806300,10.0,21.305,21.291,10.0]
[1680420806501,10.0,21.305,21.29,199.9445671]
[1680420806690,26.18,21.3,21.29,199.9445671]
[1680420807406,17.0,21.299,21.29,199.9445671]
[1680420807803,16.434,21.297,21.29,199.9445671]
[1680420808006,30.0,21.296,21.28,853.578663]
[1680420808194,52.47,21.29,21.28,853.578663]
[1680420808394,37.0,21.289,21.28,853.578663]
[1680420808801,44.11155295,21.289,21.28,853.578663]
[1680420809009,7.11155295,21.288,21.28,853.578663]
[1680420809200,20.0,21.289,21.28,853.578663]
[1680420809201,20.0,21.287,21.28,853.578663]
[1680420809403,20.0,21.289,21.28,853.578663]
[1680420809596,65.717,21.304,21.3,504.13658417]
[1680420809804,10.0,21.302,21.275,10.0]
[1680420809997,26.38,21.29,21.275,10.0]
[1680420810199,42.819,21.29,21.275,10.0]
[1680420810399,17.0,21.289,21.275,10.0]
[1680420810599,24.11155295,21.289,21.275,10.0]
[1680420811111,7.11155295,21.288,21.275,10.0]
[1680420812007,20.0,21.287,21.275,10.0]
[1680420812310,7.11155295,21.286,21.275,10.0]
[1680420812514,20.0,21.285,21.275,10.0]
[1680420812894,7.11155295,21.284,21.275,10.0]
[1680420813100,7.11155295,21.284,21.274,117.7088]
[1680420813411,7.11155295,21.284,21.275,10.0]
[1680420813611,7.11155295,21.284,21.275,118.1707]
[1680420817312,20.0,21.283,21.275,108.1707]
[1680420824922,27.11155295,21.283,21.275,108.1707]
[1680420828409,26.18,21.28,21.275,108.1707]
[1680420829422,10.0,21.278,21.264,10.0]
[1680420829608,26.38,21.27,21.26,20.0]
[1680420831324,40.56655295,21.269,21.26,20.0]
[1680420831512,60.56655295,21.269,21.26,20.0]
[1680420831711,10.0,21.267,21.26,20.0]
[1680420831909,37.0,21.266,21.26,20.0]
[1680420832110,44.11155295,21.266,21.26,20.0]
[1680420832309,23.57055295,21.265,21.26,20.0]
[1680420832523,37.0,21.264,21.26,20.0]
[1680420832726,44.11155295,21.264,21.26,20.0]
[1680420832924,7.11155295,21.263,21.26,20.0]
[1680420833728,7.11155295,21.263,21.253,120.3213]
[1680420837133,26.38,21.26,21.253,110.3213]
[1680420840429,17.0,21.259,21.253,110.3213]
[1680420847337,26.38,21.26,21.253,110.3213]
[1680420860850,7.11155295,21.263,21.253,110.3213]
[1680420862754,17.0,21.262,21.253,110.3213]
[1680420863045,24.11155295,21.262,21.253,110.3213]
[1680420863263,26.38,21.26,21.253,110.3213]
[1680420863441,17.0,21.259,21.253,110.3213]
[1680420866851,17.0,21.259,21.242,10.0]
[1680420867042,10.0,21.257,21.242,129.36]
[1680420867242,17.0,21.256,21.242,129.36]
[1680420867442,20.0,21.255,21.242,129.36]
[1680420867657,17.0,21.254,21.242,129.36]
[1680420868045,20.0,21.253,21.242,119.36]
[1680420868244,17.0,21.252,21.242,119.36]
[1680420868853,26.26,21.25,21.242,119.36]
[1680420869060,17.0,21.249,21.242,119.36]
[1680420869657,26.26,21.25,21.242,119.36]
[1680420870445,17.0,21.249,21.242,119.36]
[1680420870944,26.26,21.25,21.242,119.36]
[1680420871454,20.0,21.253,21.243,10.0]
[1680420871659,20.0,21.258,21.243,10.0]
[1680420872258,27.11155295,21.258,21.243,10.0]
[1680420872458,43.57655295,21.258,21.243,10.0]
[1680420872864,27.0,21.257,21.243,10.0]
[1680420873060,26.38,21.25,21.242,119.36]
[1680420873274,17.0,21.249,21.242,119.36]
[1680420874369,26.38,21.25,21.243,10.0]
[1680420875454,26.38,21.25,21.242,119.36]
[1680420875963,26.38,21.25,21.243,10.0]
[1680420878772,17.0,21.249,21.242,119.36]
[1680420879666,33.471,21.249,21.23,110.1121]
[1680420879857,26.26,21.24,21.232,10.0]
[1680420880173,17.0,21.239,21.232,10.0]
[1680420881074,17.0,21.239,21.231,105.5404]
[1680420881960,17.0,21.239,21.229,26.38]
[1680420882161,24.11155295,21.239,21.229,26.38]
[1680420882759,20.0,21.238,21.229,26.38]
[1680420882963,17.0,21.237,21.229,26.38]
[1680420883162,20.0,21.236,21.221,10.0]
[1680420883365,26.38,21.23,21.221,10.0]
[1680420890867,27.11155295,21.236,21.221,10.0]
[1680420891066,17.0,21.235,21.221,10.0]
[1680420891262,20.0,21.234,21.221,10.0]
[1680420891467,17.0,21.233,21.221,10.0]
[1680420893778,24.11155295,21.233,21.221,10.0]
[1680420894680,20.0,21.234,21.221,10.0]
[1680420894872,20.0,21.239,21.223,10.0]
[1680420896479,20.0,21.239,21.223,10.0]
[1680420897787,17.0,21.238,21.223,10.0]
[1680420897978,20.0,21.237,21.223,10.0]
[1680420903278,26.38,21.24,21.223,10.0]
[1680420903587,17.0,21.239,21.223,10.0]
[1680420904588,26.26,21.247,21.223,10.0]
[1680420904790,26.26,21.247,21.224,17.0]
[1680420904993,26.26,21.247,21.225,10.0]
[1680420905188,26.26,21.247,21.227,10.0]
[1680420905385,32.934,21.255,21.25,3.57195432]
[1680420905691,16.469,21.251,21.25,3.57195432]
[1680420906074,36.469,21.251,21.25,3.57195432]
[1680420906894,53.469,21.251,21.25,3.57195432]
[1680420908302,72.310468,21.251,21.25,3.57195432]
[1680420911885,55.310468,21.251,21.25,3.57195432]
[1680420913290,72.310468,21.251,21.25,3.57195432]
[1680420915601,35.310468,21.251,21.25,3.57195432]
[1680420915901,52.310468,21.251,21.25,3.57195432]
[1680420916711,18.841468,21.251,21.25,3.57195432]
[1680420919907,52.43,21.26,21.25,3.57195432]
[1680420920100,20.0,21.259,21.25,3.57195432]
[1680420921510,10.0,21.257,21.25,3.57195432]
[1680420921701,20.0,21.256,21.25,3.57195432]
[1680420922399,20.0,21.257,21.25,3.57195432]
[1680420923509,26.17,21.26,21.25,3.57195432]
[1680420924299,52.653,21.26,21.25,3.57195432]
[1680420926707,17.0,21.259,21.25,3.57195432]
[1680420932918,52.653,21.26,21.25,3.57195432]
[1680420937227,26.17,21.26,21.25,3.57195432]
[1680420938309,17.0,21.259,21.25,3.57195432]
[1680420940523,17.11155295,21.258,21.25,3.57195432]
[1680420940820,24.11155295,21.257,21.25,3.57195432]
[1680420941013,10.0,21.255,21.25,3.57195432]
[1680420941217,37.0,21.254,21.25,3.57195432]
[1680420941414,20.0,21.253,21.25,3.57195432]
[1680420941614,17.0,21.252,21.25,3.57195432]
[1680420944727,27.11155295,21.256,21.25,3.57195432]
[1680420944931,10.0,21.254,21.25,3.57195432]
[1680420945129,37.0,21.253,21.25,3.57195432]
[1680420945330,17.0,21.252,21.25,3.57195432]
[1680420972951,7.11155295,21.251,21.25,3.57195432]
[1680420973150,17.0,21.251,21.25,3.57195432]
[1680420978253,10.0,21.25,21.232,115.6969]
[1680420978459,10.0,21.245,21.232,115.6969]
[1680420978755,26.38,21.24,21.232,115.6969]
[1680420979460,7.11155295,21.239,21.232,115.6969]
[1680420980546,26.38,21.24,21.232,115.6969]
[1680420980948,17.0,21.239,21.232,115.6969]
[1680420984343,26.38,21.24,21.232,115.6969]
[1680420984762,17.0,21.239,21.232,115.6969]
[1680421000574,43.59155295,21.238,21.232,115.6969]
[1680421000771,17.0,21.237,21.232,115.6969]
[1680421000979,20.0,21.236,21.232,115.6969]
[1680421001270,17.0,21.235,21.232,115.6969]
[1680421001476,20.0,21.234,21.232,115.6969]
[1680421001678,17.0,21.233,21.232,115.6969]
[1680421001877,37.0,21.233,21.232,115.6969]
[1680421002179,37.0,21.233,21.221,10.0]
[1680421002978,37.0,21.233,21.223,10.0]
[1680421004278,20.0,21.233,21.223,10.0]
[1680421004479,20.0,21.237,21.223,10.0]
[1680421005776,17.0,21.236,21.223,10.0]
[1680421005968,20.0,21.235,21.223,10.0]
[1680421006278,17.0,21.234,21.223,10.0]
[1680421006469,20.0,21.233,21.223,10.0]
[1680421007879,20.0,21.237,21.223,10.0]
[1680421012283,17.0,21.236,21.223,10.0]
[1680421012467,20.0,21.235,21.223,10.0]
[1680421015271,52.55,21.24,21.231,10.0]
[1680421015582,16.472,21.248,21.231,10.0]
[1680421015771,26.38,21.25,21.232,17.0]
[1680421015977,26.38,21.25,21.233,10.0]
[1680421016175,26.38,21.25,21.235,10.0]
[1680421016483,26.38,21.25,21.237,10.0]
[1680421023082,17.0,21.249,21.237,10.0]
[1680421023476,26.38,21.25,21.237,10.0]